bitfinex/quotes_SOLUSD_20251201
["timestamp","ask_amount","ask_price","bid_price","bid_amount"]
[1764576251405,8.80994492,127.3,127.28,3.5652306]
[1764576252013,8.80994492,127.3,127.29,0.72]
[1764576252695,8.80994492,127.3,127.28,0.72]
[1764576252991,8.80994492,127.3,127.29,0.72]
[1764576255890,8.80994492,127.3,127.29,8.57607667]
[1764576256821,8.80994492,127.3,127.27,22.68800094]
[1764576256822,8.80994492,127.3,127.27,0.92]
[1764576257007,11.65517552,127.3,127.27,0.92]
[1764576257188,19.51071471,127.3,127.27,0.92]
[1764576257600,19.51071471,127.3,127.28,0.72]
[1764576257797,3.48,127.29,127.27,0.2]
[1764576257998,8.80994492,127.28,127.27,0.92]
[1764576258218,8.80994492,127.28,127.27,0.2]
[1764576258397,8.80994492,127.28,127.27,0.92]
[1764576260495,3.48,127.29,127.27,8.77731122]
[1764576260691,8.80994492,127.28,127.27,8.05731122]
[1764576260921,8.80994492,127.28,127.27,10.90254182]
[1764576261213,8.80994492,127.29,127.27,11.62254182]
[1764576261393,8.80994492,127.29,127.28,0.72]
[1764576261592,12.28994492,127.29,127.27,8.05731122]
[1764576261791,12.28994492,127.29,127.28,0.72]
[1764576261995,12.28994492,127.29,127.27,8.05731122]
[1764576262196,12.28994492,127.29,127.28,0.72]
[1764576263239,20.14636712,127.29,127.27,0.2]
[1764576263630,20.14636712,127.29,127.27,0.92]
[1764576265331,24.59818588,127.29,127.27,0.2]
[1764576265623,4.45181876,127.28,127.27,0.2]
[1764576265824,162.11818588,127.29,127.27,0.2]
[1764576267507,181.03837756,127.29,127.27,0.2]
[1764576267826,5.17181876,127.28,127.27,0.2]
[1764576268817,21.83845758,127.28,127.27,15.2]
[1764576270427,113.14732158,127.28,127.27,15.2]
[1764576270610,128.34732158,127.28,127.27,15.2]
[1764576274530,128.34732158,127.28,127.26,0.2]
[1764576274531,88.26176368,127.27,127.26,0.2]
[1764576274829,95.12725614,127.27,127.26,0.2]
[1764576277333,99.5790749,127.27,127.26,0.2]
[1764576277541,100.2690749,127.27,127.26,0.2]
[1764576278434,103.4205423,127.27,127.26,0.2]
[1764576279013,83.80994492,127.26,127.25,0.2]
[1764576279214,88.95176368,127.26,127.25,0.2]
[1764576279738,96.80969233,127.26,127.25,0.2]
[1764576280021,16.66787357,127.26,127.25,0.2]
[1764576280521,21.11969233,127.26,127.25,0.2]
[1764576289146,96.80969233,127.26,127.25,0.2]
[1764576290624,91.66787357,127.26,127.25,0.2]
[1764576291121,83.80994492,127.26,127.25,0.86]
[1764576291440,91.66787357,127.26,127.25,0.2]
[1764576292150,91.66787357,127.26,127.25,0.86]
[1764576292747,8.80994492,127.26,127.25,0.86]
[1764576294925,16.66787357,127.26,127.25,0.86]
[1764576295120,16.66787357,127.26,127.25,0.2]
[1764576295345,13.26176368,127.26,127.25,0.2]
[1764576295541,13.95176368,127.26,127.25,0.2]
[1764576296423,21.80969233,127.26,127.25,0.2]
[1764576296746,96.80969233,127.26,127.25,0.2]
[1764576297145,99.96115973,127.26,127.25,0.2]
[1764576300351,104.41297849,127.26,127.25,0.2]
[1764576300847,95.50934097,127.26,127.25,0.2]
[1764576301036,99.96115973,127.26,127.25,0.2]
[1764576301637,104.41297849,127.26,127.25,0.2]
[1764576302467,169.77735508,127.25,127.24,0.2]
[1764576302623,178.35917384,127.25,127.24,0.2]
[1764576303029,181.5111379,127.25,127.24,0.2]
[1764576306344,119.7111379,127.25,127.24,0.2]
[1764576308044,119.0411379,127.25,127.24,0.2]
[1764576308235,114.58931914,127.25,127.24,0.2]
[1764576308434,119.7111379,127.25,127.24,0.2]
[1764576310454,119.7311379,127.25,127.24,0.2]
[1764576310956,119.0611379,127.25,127.24,0.2]
[1764576311158,119.7311379,127.25,127.24,0.2]
[1764576313162,100.11880892,127.23,127.22,0.2]
[1764576313459,108.05062768,127.23,127.22,0.2]
[1764576313841,111.20284013,127.23,127.22,0.2]
[1764576314547,115.91040917,127.23,127.22,0.2]
[1764576315253,116.58040917,127.23,127.22,0.2]
[1764576316245,119.73287005,127.23,127.22,0.2]
[1764576320368,114.61105129,127.23,127.22,0.91]
[1764576320551,115.91040917,127.23,127.22,0.2]
[1764576321166,115.91040917,127.23,127.22,0.91]
[1764576321553,108.05062768,127.23,127.22,0.91]
[1764576322166,115.91040917,127.23,127.22,0.91]
[1764576323548,8.80994492,127.23,127.22,0.91]
[1764576325083,8.80994492,127.23,127.22,8.7703993]
[1764576332487,12.26994492,127.27,127.22,31.2726994]
[1764576332688,12.26994492,127.27,127.23,0.72]
[1764576333694,12.26994492,127.27,127.23,0.72]
[1764576334293,12.26994492,127.27,127.24,7.85916378]
[1764576334690,12.26994492,127.27,127.25,0.72]
[1764576336278,15.12124675,127.27,127.25,0.72]
[1764576338596,15.12124675,127.27,127.25,8.57846564]
[1764576338804,12.26994492,127.27,127.25,8.57846564]
[1764576338987,74.06994492,127.27,127.26,0.72]
[1764576342073,74.06994492,127.27,127.26,8.57792865]
[1764576342800,12.26994492,127.27,127.26,8.57792865]
[1764576345844,15.12124675,127.27,127.25,8.57832955]
[1764576346105,8.80994492,127.25,127.22,19.8504655]
[1764576346276,2.85130183,127.24,127.23,0.72]
[1764576346479,8.80994492,127.23,127.22,0.2]
[1764576346706,23.65102824,127.23,127.22,0.2]
[1764576349212,20.19102824,127.23,127.22,0.2]
[1764576349506,23.65102824,127.23,127.22,0.2]
[1764576352511,98.65102824,127.23,127.22,0.2]
[1764576353706,97.98102824,127.23,127.22,0.2]
[1764576354800,97.98102824,127.23,127.22,0.92]
[1764576354988,147.98102824,127.23,127.22,0.92]
[1764576355515,147.98102824,127.23,127.22,0.2]
[1764576355816,62.26994492,127.23,127.22,0.92]
[1764576356006,65.12124675,127.23,127.22,0.92]
[1764576357808,58.80994492,127.23,127.22,8.7803993]
[1764576359010,58.80994492,127.23,127.22,11.63170113]
[1764576362620,4.91282536,127.23,127.22,11.63170113]
[1764576362801,101.80655492,127.27,127.22,70.58469594]
[1764576362999,101.80655492,127.27,127.25,2.85130183]
[1764576363723,101.80655492,127.27,127.26,0.72]
[1764576364498,101.80655492,127.27,127.26,8.57792865]
[1764576365301,8.80994492,127.26,127.23,27.50903431]
[1764576365501,8.80994492,127.24,127.23,28.22903431]
[1764576365702,8.80994492,127.24,127.23,27.50903431]
[1764576365910,11.66124675,127.26,127.23,27.50903431]
[1764576366316,11.66124675,127.26,127.24,0.72]
[1764576366523,11.66124675,127.26,127.24,8.57908076]
[1764576367027,3.46,127.25,127.24,7.85908076]
[1764576367418,3.46,127.25,127.24,8.57908076]
[1764576368612,8.80994492,127.26,127.24,28.22699022]
[1764576368816,8.80994492,127.26,127.25,0.72]
[1764576369636,8.80994492,127.26,127.25,8.57854616]
[1764576369935,8.80994492,127.26,127.25,11.42984799]
[1764576370336,92.99661,127.27,127.25,31.07621341]
[1764576370548,101.80655492,127.27,127.26,0.72]
[1764576371933,101.80655492,127.27,127.26,8.57792865]
[1764576372134,101.80655492,127.27,127.26,11.42923048]
[1764576373636,101.80655492,127.27,127.26,14.88923048]
[1764576373841,92.99661,127.27,127.26,17.74053231]
[1764576374436,92.99661,127.27,127.26,26.2944378]
[1764576375648,92.99661,127.27,127.26,14.88923048]
[1764576375946,92.99661,127.27,127.26,11.42923048]
[1764576376249,92.99661,127.27,127.26,14.90923048]
[1764576377930,92.99661,127.27,127.26,14.88923048]
[1764576380143,92.99661,127.27,127.26,26.2944378]
[1764576382251,8.80994492,127.34,127.29,16.308864]
[1764576382446,12.26994492,127.34,127.31,2.85130183]
[1764576382842,12.26994492,127.34,127.31,3.52130183]
[1764576383233,12.26994492,127.34,127.32,3.52130183]
[1764576383622,0.1,127.38,127.33,2.85130183]
[1764576383953,3.46,127.37,127.34,2.85130183]
[1764576384250,8.80994492,127.36,127.34,0.67]
[1764576384432,8.80994492,127.36,127.34,3.52130183]
[1764576385029,8.80994492,127.36,127.35,3.52130183]
[1764576385235,8.80994492,127.36,127.35,11.37367717]
[1764576386341,8.80994492,127.36,127.35,12.96697916]
[1764576388148,3.46,127.37,127.35,32.59791751]
[1764576388355,0.1,127.38,127.36,5.13460382]
[1764576388551,0.1,127.38,127.37,4.44460382]
[1764576388752,0.1,127.38,127.37,5.13460382]
[1764576389750,0.1,127.38,127.37,12.98574616]
[1764576394737,9.62994492,127.38,127.37,7.85114234]
[1764576395649,8.90994492,127.38,127.37,7.85114234]
[1764576396261,8.80994492,127.37,127.36,27.48115577]
[1764576396944,8.80994492,127.37,127.36,28.20115577]
[1764576399056,0.1,127.38,127.36,32.64575959]
[1764576399447,0.1,127.38,127.37,5.16460382]
[1764576401264,0.1,127.38,127.37,13.01574616]
[1764576401665,0.1,127.38,127.37,8.57114234]
[1764576403547,0.1,127.38,127.37,13.01574616]
[1764576406639,0.1,127.38,127.37,16.47574616]
[1764576407560,0.1,127.42,127.39,16.308864]
[1764576407746,0.1,127.42,127.41,4.44460382]
[1764576408166,9.52994492,127.49,127.41,5.16460382]
[1764576408465,0.82,127.51,127.47,4.44460382]
[1764576408953,0.82,127.51,127.47,5.16460382]
[1764576409153,0.1,127.51,127.5,4.44460382]
[1764576409550,0.1,127.51,127.49,7.84375245]
[1764576409863,8.90994492,127.51,127.49,7.84375245]
[1764576410067,8.90994492,127.51,127.49,13.00835627]
[1764576410569,0.1,127.51,127.49,13.00835627]
[1764576410770,0.1,127.51,127.5,5.16460382]
[1764576411671,0.1,127.51,127.5,13.00774107]
[1764576413678,0.1,127.52,127.5,13.00774107]
[1764576413864,0.1,127.52,127.51,8.62460382]
[1764576414254,8.80994492,127.51,127.48,0.72]
[1764576414475,8.90994492,127.52,127.49,5.16460382]
[1764576414657,8.90994492,127.52,127.51,4.44460382]
[1764576414858,0.1,127.52,127.51,4.44460382]
[1764576415061,0.1,127.52,127.51,0.72]
[1764576416071,0.1,127.52,127.51,8.56252215]
[1764576416457,0.1,127.52,127.51,7.84252215]
[1764576416670,0.82,127.52,127.51,7.84252215]
[1764576416874,0.82,127.52,127.49,23.06785168]
[1764576416875,9.62994492,127.52,127.49,27.45111084]
[1764576417060,9.62994492,127.52,127.49,7.84325916]
[1764576417384,0.72,127.51,127.49,7.84325916]
[1764576418080,9.52994492,127.51,127.48,27.45454863]
[1764576418656,9.52994492,127.51,127.48,28.16454863]
[1764576419879,0.72,127.51,127.48,28.16454863]
[1764576420664,0.72,127.51,127.48,32.60915245]
[1764576420969,0.72,127.51,127.48,27.45454863]
[1764576421168,0.72,127.51,127.48,28.16454863]
[1764576423865,0.72,127.51,127.48,27.45454863]
[1764576424076,8.80994492,127.5,127.48,27.45454863]
[1764576424392,13.25454874,127.5,127.48,19.61018089]
[1764576424596,9.52994492,127.5,127.48,19.61018089]
[1764576425885,70.72460382,127.52,127.48,19.61018089]
[1764576426070,8.80994492,127.51,127.49,0.71]
[1764576426270,8.80994492,127.51,127.5,7.84313725]
[1764576427072,0.1,127.52,127.5,32.6055842]
[1764576427370,0.1,127.52,127.51,0.71]
[1764576427572,0.1,127.52,127.5,27.45098038]
[1764576427776,8.80994492,127.51,127.5,27.45098038]
[1764576428290,8.80994492,127.51,127.5,19.60784313]
[1764576431272,0.1,127.52,127.5,24.76244695]
[1764576432292,0.1,127.52,127.51,0.71]
[1764576432784,8.90994492,127.52,127.49,5.15460382]
[1764576433096,9.62994492,127.52,127.49,5.15460382]
[1764576433472,9.62994492,127.52,127.51,16.308864]
[1764576433473,0.1,127.52,127.51,16.308864]
[1764576433700,0.1,127.52,127.51,20.75346782]
[1764576433897,0.1,127.52,127.51,21.46346782]
[1764576434885,1e-08,127.53,127.51,28.59598997]
[1764576435088,1e-08,127.53,127.52,8.61460382]
[1764576435962,1e-08,127.53,127.52,18.14454874]
[1764576436271,8.80994492,127.59,127.55,16.308864]
[1764576436483,8.80994492,127.59,127.57,12.33796125]
[1764576436884,8.80994492,127.59,127.58,7.83821915]
[1764576437286,9.52994492,127.59,127.58,7.83821915]
[1764576438105,9.52994492,127.59,127.57,20.17658001]
[1764576442004,8.80994492,127.59,127.57,39.77366396]
[1764576442206,8.80994492,127.59,127.57,40.48366396]
[1764576443329,8.80994493,127.6,127.57,20.30708395]
[1764576443532,9.52994493,127.6,127.58,12.33796125]
[1764576444102,9.52994493,127.6,127.57,19.59708395]
[1764576444303,1e-08,127.6,127.59,7.83760482]
[1764576444525,1e-08,127.6,127.59,20.17556607]
[1764576444701,1e-08,127.6,127.59,20.88556607]
[1764576445122,1e-08,127.6,127.59,24.34556607]
[1764576446432,1e-08,127.6,127.59,19.87583454]
[1764576454229,1e-08,127.6,127.59,16.41583454]
[1764576454931,1e-08,127.6,127.59,19.87583454]
[1764576455127,1e-08,127.6,127.59,16.41583454]
[1764576455326,1e-08,127.6,127.59,19.87583454]
[1764576455517,1e-08,127.6,127.59,16.41583454]
[1764576456435,1e-08,127.6,127.59,19.83583454]
[1764576457226,1e-08,127.6,127.59,27.70406426]
[1764576457406,1e-08,127.6,127.59,19.83583454]
[1764576458455,1e-08,127.6,127.59,14.79997015]
[1764576462110,4.80361246,127.64,127.62,16.308864]
[1764576462316,4.80361246,127.64,127.63,6.29236533]
[1764576462524,4.80361246,127.64,127.63,6.96236533]
[1764576463240,4.80361246,127.64,127.63,14.7975138]
[1764576463932,4.80361246,127.64,127.63,11.3375138]
[1764576464134,4.80361246,127.64,127.63,14.7975138]
[1764576464827,4.80361246,127.64,127.63,10.6675138]
[1764576465223,8.80994492,127.63,127.6,27.42946707]
[1764576465426,8.80994492,127.62,127.6,27.42946707]
[1764576465627,9.52994492,127.62,127.6,27.42946707]
[1764576465815,0.72,127.61,127.6,27.42946707]
[1764576466721,0.72,127.61,127.6,19.59247648]
[1764576467123,8.80994492,127.63,127.6,20.26247648]
[1764576467325,0.72,127.62,127.6,19.59247648]
[1764576467635,9.52994492,127.63,127.6,23.05247648]
[1764576467826,9.52994492,127.63,127.6,19.59247648]
[1764576468033,9.52994492,127.63,127.61,2.83236533]
[1764576468541,8.80994492,127.63,127.62,2.83236533]
[1764576468749,4.80361246,127.64,127.63,7.83514847]
[1764576469044,4.80361246,127.64,127.63,14.7975138]
[1764576471050,1e-08,127.64,127.63,14.7975138]
[1764576473145,1e-08,127.64,127.63,11.3375138]
[1764576473329,1e-08,127.64,127.63,14.7975138]
[1764576475232,1e-08,127.64,127.63,11.3375138]
[1764576475437,1e-08,127.64,127.63,14.7975138]
[1764576476532,1e-08,127.64,127.63,10.6675138]
[1764576476739,9.48994493,127.64,127.63,7.83514847]
[1764576477055,1e-08,127.64,127.63,10.6675138]
[1764576477348,1e-08,127.64,127.63,14.7975138]
[1764576481552,1e-08,127.64,127.63,14.1275138]
[1764576482534,1e-08,127.64,127.63,14.7975138]
[1764576482954,1e-08,127.64,127.63,14.1275138]
[1764576484256,1e-08,127.64,127.63,10.6675138]
[1764576484552,9.48994493,127.64,127.63,7.83514847]
[1764576484958,8.80994492,127.71,127.63,70.10112737]
[1764576485140,9.48994492,127.71,127.7,2.83236533]
[1764576485330,8.90994492,127.72,127.67,16.308864]
[1764576485531,8.80994492,127.69,127.68,2.83236533]
[1764576485949,0.68,127.69,127.68,10.66444553]
[1764576486157,0.68,127.69,127.68,30.24464603]
[1764576486331,0.68,127.69,127.68,27.4122807]
[1764576486841,0.68,127.69,127.68,7.8320802]
[1764576487850,8.80994492,127.68,127.64,27.42087119]
[1764576488153,8.80994492,127.68,127.64,30.25323652]
[1764576488342,8.80994492,127.66,127.64,30.25323652]
[1764576488955,0.68,127.66,127.64,27.42087119]
[1764576489364,0.68,127.66,127.64,19.58633657]
[1764576489952,0.68,127.7,127.65,3.50236533]
[1764576490133,0.68,127.7,127.67,2.83236533]
[1764576490955,0.68,127.7,127.66,2.83236533]
[1764576491363,0.1,127.72,127.69,2.83236533]
[1764576491544,0.1,127.72,127.71,19.14122933]
[1764576491942,1e-08,127.72,127.71,19.81122933]
[1764576492553,0.1,127.73,127.72,16.308864]
[1764576492760,0.1,127.73,127.72,6.98236533]
[1764576493348,0.1,127.73,127.72,14.81199263]
[1764576494379,0.1,127.73,127.72,15.68243356]
[1764576494744,0.1,127.73,127.72,16.35243356]
[1764576495373,0.1,127.74,127.72,35.92650183]
[1764576495556,0.1,127.74,127.73,12.00280626]
[1764576497559,0.1,127.74,127.73,19.83182058]
[1764576499767,0.1,127.74,127.73,15.68182058]
[1764576500476,8.90994492,127.74,127.73,15.68182058]
[1764576501669,0.1,127.74,127.73,16.35182058]
[1764576501859,0.1,127.74,127.73,15.68182058]
[1764576502778,8.90994492,127.74,127.72,27.40369557]
[1764576502983,8.90994492,127.74,127.73,7.85280626]
[1764576503348,0.1,127.74,127.72,27.40369557]
[1764576503549,9.48994492,127.73,127.72,27.40369557]
[1764576503749,8.80994492,127.73,127.72,28.07369557]
[1764576503951,8.80994492,127.73,127.72,35.25650183]
[1764576504159,9.48994492,127.73,127.72,27.40369557]
[1764576504750,9.48994492,127.73,127.72,35.25650183]
[1764576505980,9.48994492,127.73,127.72,27.40369557]
[1764576506174,9.48994492,127.73,127.72,7.8296273]
[1764576512175,9.48994492,127.73,127.7,27.40750562]
[1764576512360,9.48994492,127.73,127.71,12.31072452]
[1764576512681,9.45994492,127.72,127.7,7.83085356]
[1764576513082,0.65,127.71,127.7,7.83085356]
[1764576514377,9.45994492,127.73,127.7,20.14157808]
[1764576514578,8.80994492,127.73,127.71,12.31072452]
[1764576514763,8.80994492,127.73,127.72,12.31072452]
[1764576516385,8.80994492,127.73,127.72,4.41849922]
[1764576518499,8.80994492,127.73,127.72,12.24812652]
[1764576518682,8.80994492,127.73,127.66,41.16490467]
[1764576518683,8.80994492,127.71,127.66,12.25180644]
[1764576518892,8.80994492,127.69,127.66,31.83507449]
[1764576519101,8.80994492,127.69,127.66,32.50507449]
[1764576519268,9.45994492,127.69,127.66,32.50507449]
[1764576519684,8.80994492,127.69,127.68,20.72736322]
[1764576519863,8.80994492,127.72,127.68,25.14586244]
[1764576520191,8.80994492,127.72,127.71,4.41849922]
[1764576520492,8.80994492,127.72,127.71,12.31207996]
[1764576520792,8.80994492,127.72,127.71,20.14232034]
[1764576521162,8.80994492,127.72,127.71,7.83024038]
[1764576522379,8.80994492,127.72,127.71,20.14232034]
[1764576523797,8.80994492,127.72,127.71,7.83024038]
[1764576526669,0.1,127.74,127.71,43.86792131]
[1764576526867,0.1,127.74,127.73,12.31207996]
[1764576527078,0.1,127.74,127.73,20.14109428]
[1764576527297,0.1,127.74,127.73,20.81109428]
[1764576535793,0.1,127.74,127.73,20.14109428]
[1764576536098,0.1,127.74,127.73,7.82901432]
[1764576536290,0.1,127.74,127.73,20.14109428]
[1764576540402,0.1,127.74,127.73,7.82901432]
[1764576541007,0.1,127.74,127.73,20.14109428]
[1764576541493,9.61994492,127.74,127.73,7.82901432]
[1764576542493,8.80994492,127.73,127.72,4.41906037]
[1764576543573,0.81,127.74,127.71,32.52490172]
[1764576545309,0.81,127.74,127.72,4.41906037]
[1764576545496,0.1,127.74,127.72,5.11906037]
[1764576545701,0.1,127.74,127.73,4.41906037]
[1764576546010,0.1,127.74,127.73,5.11906037]
[1764576546392,0.1,127.74,127.73,4.41906037]
[1764576546787,0.1,127.74,127.73,12.24807469]
[1764576547393,0.1,127.74,127.73,7.82901432]
[1764576547612,0.1,127.74,127.73,12.24807469]
[1764576550011,0.1,127.74,127.73,7.82901432]
[1764576551402,9.61994492,127.74,127.73,7.82901432]
[1764576551593,0.81,127.74,127.72,7.82929996]
[1764576556501,0.81,127.74,127.71,27.40584135]
[1764576556807,0.81,127.74,127.71,32.52490172]
[1764576557201,0.81,127.74,127.71,28.10584135]
[1764576557921,0.81,127.74,127.71,32.52490172]
[1764576558221,0.81,127.74,127.71,28.10584135]
[1764576558422,0.81,127.74,127.71,32.52490172]
[1764576558624,0.81,127.74,127.71,28.10584135]
[1764576561621,8.80994492,127.73,127.71,27.40584135]
[1764576562218,0.71,127.73,127.71,27.40584135]
[1764576563027,9.61994492,127.74,127.71,28.10584135]
[1764576563607,9.61994492,127.74,127.71,27.40584135]
[1764576563815,9.61994492,127.74,127.71,28.10584135]
[1764576565011,0.71,127.73,127.71,27.40584135]
[1764576565217,9.61994492,127.74,127.71,28.10584135]
[1764576565413,8.90994492,127.74,127.71,27.40584135]
[1764576565613,0.71,127.73,127.71,27.40584135]
[1764576566203,9.56994492,127.74,127.71,27.40584135]
[1764576566409,9.56994492,127.74,127.71,28.06584135]
[1764576568126,9.56994492,127.74,127.71,32.48490172]
[1764576568426,9.56994492,127.74,127.71,28.06584135]
[1764576569139,9.56994492,127.74,127.71,32.48490172]
[1764576570434,9.56994492,127.74,127.71,30.89432677]
[1764576571134,9.56994492,127.74,127.71,28.06584135]
[1764576574723,9.56994492,127.74,127.71,30.93432677]
[1764576574724,9.61994492,127.74,127.71,30.93432677]
[1764576574935,9.61994492,127.74,127.71,28.10584135]
[1764576575322,8.80994492,127.72,127.71,7.83024038]
[1764576576134,8.80994492,127.73,127.71,7.83024038]
[1764576576333,9.51994492,127.73,127.71,7.83024038]
[1764576576635,15.09843034,127.73,127.7,7.83085356]
[1764576576841,0.71,127.72,127.7,7.83085356]
[1764576577943,15.80843034,127.73,127.7,8.53085356]
[1764576578138,0.71,127.72,127.7,7.83085356]
[1764576578343,2.82848542,127.71,127.69,7.83146683]
[1764576578823,3.53848542,127.71,127.69,7.83146683]
[1764576579420,3.53848542,127.71,127.68,7.83182586]
[1764576579745,3.53848542,127.71,127.68,8.53182586]
[1764576580924,0.71,127.71,127.68,8.53182586]
[1764576581247,3.53848542,127.71,127.68,8.53182586]
[1764576584745,0.71,127.7,127.68,7.83182586]
[1764576584923,2.82848542,127.69,127.68,7.83182586]
[1764576585119,11.63843034,127.69,127.65,27.41793082]
[1764576585318,2.82848542,127.66,127.65,7.83392087]
[1764576585845,11.63843034,127.66,127.64,7.83438404]
[1764576586229,8.80994492,127.66,127.64,8.53438404]
[1764576587943,9.51994492,127.66,127.64,7.83438404]
[1764576588553,8.80994492,127.66,127.64,8.53438404]
[1764576591148,0.71,127.65,127.63,7.83487657]
[1764576591356,12.34843034,127.66,127.63,8.53487657]
[1764576592555,9.51994492,127.66,127.63,8.53487657]
[1764576592757,12.34843034,127.66,127.63,8.53487657]
[1764576593756,11.63843034,127.66,127.63,7.83487657]
[1764576593963,0.71,127.65,127.63,7.83487657]
[1764576595337,11.63843034,127.66,127.63,7.83487657]
[1764576595544,0.71,127.65,127.63,7.83487657]
[1764576595933,3.53848542,127.65,127.63,7.83487657]
[1764576596343,3.53848542,127.65,127.62,8.53557892]
[1764576596544,2.82848542,127.63,127.59,0.2]
[1764576596770,8.80994492,127.63,127.59,8.71728436]
[1764576597064,12.33843034,127.63,127.6,0.68]
[1764576597635,0.7,127.63,127.6,0.68]
[1764576598166,3.52848542,127.63,127.6,0.68]
[1764576598846,12.33843034,127.63,127.61,7.83637645]
[1764576601243,2.82848542,127.62,127.61,7.83637645]
[1764576601661,12.33843034,127.63,127.61,7.83637645]
[1764576602864,3.46,127.62,127.61,7.83637645]
[1764576603168,3.46,127.62,127.6,0.68]
[1764576603169,15.79843034,127.62,127.6,7.83676784]
[1764576603471,30.95133831,127.64,127.6,0.68]
[1764576603768,12.26994492,127.63,127.6,0.68]
[1764576603935,12.96994492,127.63,127.6,0.68]
[1764576604139,2.82848542,127.62,127.59,8.03760482]
[1764576604335,2.82848542,127.6,127.59,0.2]
[1764576604562,15.09843034,127.6,127.59,0.2]
[1764576604742,15.79843034,127.6,127.59,0.2]
[1764576606160,15.09843034,127.6,127.59,0.2]
[1764576606356,15.79843034,127.6,127.59,0.2]
[1764576606753,15.09843034,127.6,127.59,0.2]
[1764576606964,15.79843034,127.6,127.59,0.2]
[1764576609758,37.11579951,127.6,127.59,0.2]
[1764576609958,39.94428493,127.6,127.59,0.2]
[1764576610356,39.94428493,127.6,127.5,0.2]
[1764576610357,8.80994492,127.55,127.51,0.68]
[1764576610571,8.80994492,127.53,127.51,0.68]
[1764576611281,8.80994492,127.53,127.51,8.52246177]
[1764576611680,3.46,127.54,127.52,0.68]
[1764576612345,3.46,127.54,127.52,8.52169916]
[1764576612965,63.99999999,127.6,127.52,8.52169916]
[1764576612966,158.38024318,127.61,127.53,3.50848542]
[1764576613151,20.8069375,127.6,127.54,2.82848542]
[1764576613351,8.80994492,127.57,127.54,0.68]
[1764576613552,3.46,127.56,127.54,0.68]
[1764576614153,3.46,127.56,127.54,8.52021615]
[1764576614374,6.28848542,127.56,127.54,8.52021615]
[1764576614667,12.33843034,127.55,127.51,0.68]
[1764576614875,2.82848542,127.54,127.52,0.68]
[1764576615080,6.28848542,127.53,127.5,0.2]
[1764576615371,8.80994492,127.52,127.5,8.72302098]
[1764576616268,8.80994492,127.52,127.51,0.68]
[1764576616576,8.80994492,127.52,127.5,8.72302098]
[1764576617681,11.63843034,127.52,127.5,0.2]
[1764576618668,11.63843034,127.52,127.5,8.04307975]
[1764576618868,15.79843034,127.53,127.5,8.72307975]
[1764576619380,20.11133908,127.53,127.5,0.2]
[1764576619553,3.52848542,127.52,127.5,0.2]
[1764576619754,2.82848542,127.51,127.5,0.2]
[1764576620980,17.35198873,127.52,127.5,0.2]
[1764576621165,2.82848542,127.51,127.5,0.2]
[1764576621672,6.28848542,127.51,127.5,0.2]
[1764576622287,3.46,127.51,127.5,0.2]
[1764576623659,12.26994492,127.51,127.5,0.88]
[1764576624456,12.26994492,127.51,127.5,0.2]
[1764576625382,12.26994492,127.51,127.5,0.88]
[1764576627700,12.26994492,127.51,127.5,0.2]
[1764576629283,3.46,127.51,127.5,8.76313725]
[1764576630400,3.46,127.51,127.5,8.26313725]
[1764576631066,3.46,127.51,127.5,7.54313725]
[1764576631293,3.46,127.51,127.49,8.56354371]
[1764576632675,7.89533251,127.51,127.49,8.56354371]
[1764576632878,7.89533251,127.51,127.5,8.56313725]
[1764576633493,3.46,127.51,127.5,8.56313725]
[1764576634075,12.26994492,127.51,127.5,7.84313725]
[1764576634495,12.26994492,127.51,127.5,8.56313725]
[1764576634794,12.26994492,127.51,127.49,0.72]
[1764576634968,12.26994492,127.51,127.49,8.56350995]
[1764576637094,16.70527743,127.51,127.49,8.56350995]
[1764576639892,5.11533251,127.5,127.47,8.76451396]
[1764576640098,7.89533251,127.49,127.47,8.76451396]
[1764576640298,7.89533251,127.49,127.48,0.72]
[1764576640503,3.46,127.49,127.48,0.72]
[1764576641603,8.57533251,127.49,127.47,0.2]
[1764576641779,7.89533251,127.49,127.47,0.92]
[1764576643588,8.57533251,127.49,127.47,0.2]
[1764576644087,13.24527743,127.48,127.47,0.2]
[1764576645203,21.76964517,127.48,127.47,0.2]